fUST/lending_fUST_20241105
["ID","MTS","AMOUNT","RATE_DAILY","PERIOD"]
[341309745,1730751047703,-151.0,0.00034246,14]
[341309746,1730751047712,-151.0,0.00034246,14]
[341309747,1730751047721,-151.0,0.00034246,14]
[341309748,1730751047731,-151.0,0.00034246,14]
[341309749,1730751047740,-151.0,0.00034246,14]
[341309750,1730751047750,-151.0,0.00034246,14]
[341309751,1730751047759,-151.0,0.00034246,14]
[341309752,1730751047769,-2707.64,0.00034246,3]
[341309753,1730751047778,-153.0,0.00034329,2]
[341309754,1730751047788,-153.0,0.00034329,2]
[341309755,1730751047797,-153.0,0.00034329,2]
[341309756,1730751047806,-153.0,0.00034329,2]
[341309757,1730751047816,-151.0,0.0003452,14]
[341309758,1730751047825,-151.0,0.0003452,14]
[341309759,1730751047834,-2707.64,0.0003452,3]
[341309760,1730751047844,-160.0,0.00034534,3]
[341309761,1730751047853,-248.895447,0.00034603,2]
[341309762,1730751047863,-154.03,0.000347,31]
[341309763,1730751047872,-154.03,0.000347,31]
[341309764,1730751047881,-151.0,0.00034794,14]
[341309765,1730751047891,-203.848636,0.00034794,14]
[341309766,1730751047900,-163.890064,0.00034794,14]
[341309767,1730751047910,-151.0,0.00034794,14]
[341309768,1730751047920,-151.0,0.00034794,14]
[341309769,1730751047929,-151.0,0.00034794,14]
[341309770,1730751047939,-2707.64,0.00034794,3]
[341309771,1730751047949,-249.338955,0.00034794,14]
[341309772,1730751047958,-249.338955,0.00034794,14]
[341309773,1730751047968,-2694.61,0.00034931,120]
[341309774,1730751047978,-151.0,0.00035041,14]
[341309775,1730751047988,-151.0,0.00035041,14]
[341309776,1730751047998,-151.0,0.00035041,14]
[341309777,1730751048010,-151.0,0.00035041,14]
[341309778,1730751048022,-151.0,0.00035041,14]
[341309779,1730751048032,-151.0,0.00035041,14]
[341309780,1730751048043,-151.0,0.00035041,14]
[341309781,1730751048053,-153.0,0.00035041,2]
[341309782,1730751048063,-211.1877169,0.00035041,2]
[341309783,1730751048073,-153.0,0.00035041,2]
[341309784,1730751048084,-153.0,0.00035041,2]
[341309785,1730751048098,-211.1877169,0.00035041,2]
[341309786,1730751048108,-153.0,0.00035041,2]
[341309787,1730751048119,-211.1877169,0.00035041,2]
[341309788,1730751048128,-303.2483916,0.00035041,2]
[341309789,1730751048138,-303.2483916,0.00035041,2]
[341309790,1730751048148,-153.0,0.00035041,2]
[341309791,1730751048157,-211.1877169,0.00035041,2]
[341309792,1730751048167,-302.6933574,0.00035041,2]
[341309793,1730751048177,-211.1877169,0.00035041,2]
[341309794,1730751048191,-303.2483916,0.00035041,2]
[341309795,1730751048200,-153.0,0.00035041,2]
[341309796,1730751048210,-211.1877169,0.00035041,2]
[341309797,1730751048219,-303.2483916,0.00035041,2]
[341309798,1730751048321,-211.1877169,0.00035041,2]
[341309799,1730751048333,-211.1877169,0.00035041,2]
[341309800,1730751048343,-211.1877169,0.00035041,2]
[341309801,1730751048353,-211.1877169,0.00035041,2]
[341309802,1730751048362,-151.0,0.00035068,14]
[341309803,1730751048371,-151.0,0.00035068,14]
[341309804,1730751048381,-2707.64,0.00035068,3]
[341309805,1730751048391,-181.20366481,0.00035086,2]
[341309806,1730751048400,-500.0,0.000351,47]
[341309807,1730751048410,-500.0,0.00035186,2]
[341309808,1730751048419,-500.0,0.00035286,5]
[341309809,1730751048429,-151.0,0.00035342,14]
[341309810,1730751048439,-151.0,0.00035342,14]
[341309811,1730751048448,-2707.64,0.00035342,3]
[341309812,1730751048458,-211.0200078,0.00035425,2]
[341309813,1730751048468,-1867.45751958,0.00035438,2]
[341309814,1730751048478,-500.0,0.00035552,5]
[341309815,1730751048487,-500.0,0.00035552,5]
[341309816,1730751048497,-500.0,0.00035552,5]
[341309817,1730751048507,-479.58464004,0.00035552,5]
[341309818,1730751048517,-500.0,0.00035552,5]
[341309819,1730751048526,-249.350017,0.00035616,14]
[341309820,1730751048535,-151.0,0.00035616,14]
[341309821,1730751048545,-151.0,0.00035616,14]
[341309822,1730751048555,-151.0,0.00035616,14]
[341309823,1730751048564,-2707.64,0.00035616,3]
[341309824,1730751048573,-249.338955,0.00035616,14]
[341309825,1730751048583,-249.338955,0.00035616,14]
[341309826,1730751048592,-166.86325,0.00035645,2]
[341309827,1730751048602,-153.0,0.00035781,2]
[341309828,1730751048611,-600.0,0.00035799,2]
[341309829,1730751048620,-500.0,0.00035799,2]
[341309830,1730751048630,-500.0,0.00035799,2]
[341309831,1730751048639,-26997.5917859,0.000358,2]
[341309832,1730751048648,-151.0,0.000358,14]
[341309833,1730751048658,-151.0,0.000358,14]
[341309834,1730751048668,-151.0,0.000358,14]
[341309835,1730751048678,-151.0,0.000358,14]
[341309836,1730751048689,-151.0,0.000358,14]
[341309837,1730751048698,-151.0,0.000358,14]
[341309838,1730751048708,-151.0,0.000358,14]
[341309839,1730751048717,-151.0,0.000358,14]
[341309840,1730751048727,-151.0,0.000358,14]
[341309841,1730751048736,-249.338955,0.000358,14]
[341309842,1730751048746,-249.338955,0.000358,14]
[341309843,1730751048756,-232.0435,0.00035823,2]
[341309844,1730751048765,-179.2432973,0.00035863,2]
[341309845,1730751048775,-211.1877169,0.00035863,2]
[341309846,1730751048784,-211.1877169,0.00035863,2]
[341309847,1730751048793,-2694.61,0.0003589,120]
[341309848,1730751048803,-2707.64,0.0003589,3]
[341309849,1730751048813,-500.0,0.00035987,2]
[341309850,1730751048822,-385.4793046,0.00035988,2]
[341309865,1730751575096,166.4225254,0.00013973,2]
[341309874,1730752028129,-383.027126,0.00024809,2]
[341309875,1730752028253,-136.19076147,0.00025582,2]
[341309877,1730752053147,-428.6661847,0.00024879,2]
[341309878,1730752053170,-700.29656986,0.000256,2]
[341309879,1730752053191,-300.0,0.0002568,2]
[341309880,1730752053212,-300.0,0.0002568,2]
[341309881,1730752053234,-500.0,0.00025681,2]
[341309882,1730752053257,-500.0,0.00025681,2]
[341309883,1730752053279,-500.0,0.00025681,2]
[341309884,1730752053300,-152.39727109,0.00025681,2]
[341309885,1730752053322,-250.0,0.00025681,2]
[341309886,1730752053343,-500.0,0.00025681,2]
[341309887,1730752053365,-500.0,0.00025681,2]
[341309888,1730752053385,-288.46957407,0.00025681,2]
[341309889,1730752053406,-310.79972104,0.00025681,2]
[341309893,1730752085726,213.618424,0.00013973,2]
[341309897,1730752100652,185.86634559,0.000123,2]
[341309906,1730752128316,560.79316822,0.000149,2]
[341309912,1730752155127,-2770.18508936,0.00020377,2]
[341309913,1730752155150,-213.618424,0.00020447,2]
[341309914,1730752168099,-3715.6637093,0.00024586,2]
[341309916,1730752216770,978.18166089,0.00024681,2]
[341309948,1730752232584,-1448.19744169,0.00024681,2]
[341309949,1730752232602,-308.54823592,0.00024681,2]
[341309964,1730752238243,-77.559655,0.00024681,2]
[341309965,1730752238253,-215.0,0.00025679,2]
[341309966,1730752238262,-481.8137943,0.00025679,2]
[341309967,1730752238278,-18.1862057,0.00025679,2]
[341309968,1730752238287,-500.0,0.00025679,2]
[341309969,1730752238296,-500.0,0.00025679,2]
[341309970,1730752238305,-227.62886177,0.00025679,2]
[341309971,1730752238315,-500.0,0.00025679,2]
[341309972,1730752238324,-500.0,0.00025679,2]
[341309973,1730752238333,-593.05599418,0.00025679,2]
[341309974,1730752238342,-500.0,0.00025679,2]
[341309975,1730752238351,-500.0,0.00025679,2]
[341309976,1730752238362,-500.0,0.00025679,2]
[341309977,1730752238371,-500.0,0.00025679,2]
[341309978,1730752238380,-500.0,0.00025679,2]
[341309979,1730752238389,-500.0,0.00025679,2]
[341309980,1730752238399,-500.0,0.00025679,2]
[341309981,1730752238409,-500.0,0.00025679,2]
[341309982,1730752238418,-500.0,0.00025679,2]
[341309983,1730752238427,-500.0,0.00025679,2]
[341309984,1730752238438,-500.0,0.00025679,2]
[341309985,1730752238447,-500.0,0.00025679,2]
[341309986,1730752238458,-500.0,0.00025679,2]
[341309987,1730752238467,-500.0,0.00025679,2]
[341309988,1730752238477,-500.0,0.00025679,2]
[341309989,1730752238486,-500.0,0.00025679,2]
[341309990,1730752238495,-500.0,0.00025679,2]
[341309991,1730752238504,-493.82255659,0.00025679,2]
[341309992,1730752238513,-500.0,0.00025679,2]
[341309993,1730752238522,-423.90190016,0.00025679,2]
[341309994,1730752238534,-76.09809984,0.00025679,2]
[341309995,1730752238543,-500.0,0.00025679,2]
[341309996,1730752238552,-500.0,0.00025679,2]
[341309997,1730752238561,-500.0,0.00025679,2]
[341309998,1730752238570,-251.58161953,0.00025679,2]
[341309999,1730752238581,-248.41838047,0.00025679,2]
[341310000,1730752238590,-274.74012608,0.00025679,2]
[341310001,1730752238598,-500.0,0.00025679,2]
[341310002,1730752238610,-500.0,0.00025679,2]
[341310003,1730752238619,-321.40069717,0.00025679,2]
[341310004,1730752238630,-178.59930283,0.00025679,2]
[341310005,1730752238639,-500.0,0.00025679,2]
[341310006,1730752238649,-500.0,0.00025679,2]
[341310007,1730752238658,-500.0,0.00025679,2]
[341310008,1730752238666,-500.0,0.00025679,2]
[341310009,1730752238675,-500.0,0.00025679,2]
[341310010,1730752238684,-500.0,0.00025679,2]
[341310011,1730752238693,-300.0,0.00025679,2]
[341310012,1730752238701,-300.0,0.00025679,2]
[341310013,1730752238710,-4234.67701007,0.00025681,2]
[341310014,1730752238721,-765.32298993,0.00025681,2]
[341310015,1730752238730,-194.32863756,0.00025682,2]
[341310016,1730752238739,-381.42583797,0.00025682,2]
[341310017,1730752238751,-4618.57416203,0.00025682,2]
[341310018,1730752238759,-349.23585056,0.00025682,2]
[341310019,1730752238768,-18363.31706047,0.00025683,2]
[341310020,1730752238779,-482.58029103,0.00025683,2]
[341310030,1730752242621,-6054.1026485,0.00025683,2]
[341310031,1730752242630,-161.1140976,0.00026091,2]
[341310032,1730752242639,-173.542379,0.00026191,2]
[341310033,1730752242648,-175.117,0.00026296,2]
[341310034,1730752242657,-1753.749278,0.00026355,2]
[341310035,1730752242666,-162.213846,0.00026472,2]
[341310036,1730752242675,-162.213846,0.00026604,2]
[341310037,1730752242684,-173.94795865,0.00026725,2]
[341310038,1730752242693,-5000.0,0.00026905,2]
[341310039,1730752242702,-213.618424,0.00026921,2]
[341310041,1730752242712,-165.0,0.00027,2]
[341310043,1730752242721,-1753.749278,0.0002704,2]
[341310045,1730752242731,-1753.749278,0.00027725,2]
[341310047,1730752242740,-420.0,0.00027799,2]
[341310049,1730752242749,-420.0,0.00028246,2]
[341310051,1730752242758,-1905.84823179,0.0002878,2]
[341310053,1730752242767,-163.889,0.0003,2]
[341310055,1730752242777,-253.0,0.0003,2]
[341310056,1730752242786,-587.0,0.00030095,2]
[341310057,1730752242795,-500.0,0.00030136,2]
[341310058,1730752242804,-500.0,0.00030136,2]
[341310059,1730752242813,-500.0,0.00030136,3]
[341310060,1730752242822,-500.0,0.00030136,2]
[341310061,1730752242831,-500.0,0.0003041,3]
[341310062,1730752242840,-500.0,0.00030684,3]
[341310063,1730752242849,-500.0,0.00030958,3]
[341310064,1730752242858,-300.0,0.00031071,2]
[341310065,1730752242867,-5000.0,0.00031072,2]
[341310066,1730752242877,-500.0,0.00031099,2]
[341310067,1730752242886,-500.0,0.000312,30]
[341310068,1730752242895,-500.0,0.000312,30]
[341310069,1730752242904,-500.0,0.000312,30]
[341310071,1730752242912,-500.0,0.000312,30]
[341310072,1730752242921,-500.0,0.000312,30]
[341310073,1730752242931,-500.0,0.000312,30]
[341310074,1730752242940,-500.0,0.000312,30]
[341310075,1730752242949,-504.90977723,0.000312,30]
[341310076,1730752242959,-500.0,0.000312,30]
[341310078,1730752242968,-500.0,0.000312,30]
[341310079,1730752242976,-563.49694217,0.000312,30]
[341310080,1730752242986,-500.0,0.00031232,3]
[341310081,1730752242995,-500.0,0.00031506,3]
[341310082,1730752243007,-38.09329082,0.0003178,3]
[341310083,1730752243019,-461.90670918,0.0003178,3]
[341310084,1730752243028,-157.80634561,0.00032054,3]
[341310085,1730752243040,-261.546,0.00032054,3]
[341310098,1730752766240,11284.32958483,0.00033666,30]
[341310129,1730753077494,181.57566,0.00013973,2]
[341310130,1730753236137,-181.57566,0.00020447,2]
[341310131,1730753236160,-61.78268668,0.00025824,2]
[341310132,1730753238153,-130.20219676,0.00025824,2]
[341310133,1730753238174,-175.117,0.00025924,2]
[341310134,1730753238197,-181.57566,0.00026921,2]
[341310135,1730753238219,-162.213846,0.00028347,2]
[341310136,1730753238241,-162.213846,0.00028394,2]
[341310137,1730753238264,-162.213846,0.00028441,2]
[341310138,1730753238288,-162.213846,0.00028488,2]
[341310139,1730753238311,-191.513563,0.0002849,2]
[341310140,1730753238338,-174.880207,0.00028747,2]
[341310141,1730753238365,-3000.0,0.00029533,2]
[341310142,1730753238388,-300.0,0.00029715,2]
[341310143,1730753238409,-300.0,0.00029715,2]
[341310144,1730753238437,-500.0,0.00029716,2]
[341310145,1730753238460,-395.82540446,0.00029716,2]
[341310146,1730753242136,-104.17459554,0.00029716,2]
[341310147,1730753242158,-259.89729314,0.00029716,2]
[341310165,1730753432491,-196.126884,0.00029236,2]
[341310166,1730753432508,-191.513564,0.00029292,2]
[341310167,1730753432520,-821.6059629,0.00029494,2]
[341310168,1730753432529,-300.0,0.00029857,2]
[341310169,1730753432538,-300.0,0.00029857,2]
[341310170,1730753432547,-4860.94812201,0.00029858,2]
[341310171,1730753432607,-1057.77209003,0.00029858,2]
[341310180,1730753438570,-1172.66629686,0.00029858,2]
[341310181,1730753438584,-196.126884,0.00029921,2]
[341310182,1730753438593,-165.0,0.0003,2]
[341310183,1730753438603,-451.6387078,0.00030134,2]
[341310184,1730753438615,-48.3612922,0.00030134,2]
[341310185,1730753438627,-500.0,0.00030134,2]
[341310186,1730753438637,-500.0,0.00030134,2]
[341310187,1730753438646,-619.36273644,0.00030134,2]
[341310188,1730753438658,-500.0,0.00030134,2]
[341310189,1730753438668,-420.91809528,0.00030134,2]
[341310190,1730753438678,-4421.45787608,0.00030135,2]
[341310203,1730753440502,-578.54212392,0.00030135,2]
[341310204,1730753440512,-254.0,0.00030136,2]
[341310205,1730753440522,-500.0,0.00030136,3]
[341310206,1730753440532,-325.37979037,0.00030136,3]
[341310207,1730753440544,-174.62020963,0.00030136,3]
[341310208,1730753440553,-500.0,0.00030136,3]
[341310209,1730753440563,-359.08869764,0.00030136,3]
[341310210,1730753440573,-500.0,0.00030136,3]
[341310211,1730753440588,-403.00586668,0.00030136,3]
[341310212,1730753440597,-200.0,0.00030136,3]
[341310213,1730753440607,-500.0,0.00030136,2]
[341310214,1730753440617,-500.0,0.00030136,3]
[341310215,1730753440627,-500.0,0.0003041,3]
[341310216,1730753440636,-500.0,0.0003041,3]
[341310217,1730753440646,-165.0,0.00030411,2]
[341310218,1730753440657,-196.126884,0.00030606,2]
[341310219,1730753440666,-500.0,0.00030684,3]
[341310220,1730753440676,-500.0,0.00030684,3]
[341310221,1730753440685,-500.0,0.00030958,3]
[341310222,1730753440694,-500.0,0.00030958,3]
[341310223,1730753440703,-500.0,0.000311,30]
[341310224,1730753440712,-500.0,0.000311,30]
[341310225,1730753440722,-500.0,0.000311,30]
[341310226,1730753440732,-500.0,0.000311,30]
[341310227,1730753440741,-500.0,0.000311,30]
[341310228,1730753440751,-500.0,0.000311,30]
[341310229,1730753440760,-500.0,0.000311,30]
[341310230,1730753440770,-500.0,0.00031232,3]
[341310231,1730753440784,-500.0,0.00031232,3]
[341310232,1730753440793,-500.0,0.00031506,3]
[341310233,1730753440802,-425.28768657,0.00031506,3]
[341310234,1730753440814,-74.71231343,0.00031506,3]
[341310235,1730753440824,-165.0,0.00031644,2]
[341310236,1730753440834,-628.05579289,0.0003178,3]
[341310237,1730753440843,-500.0,0.0003178,3]
[341310238,1730753440853,-500.0,0.00032054,3]
[341310239,1730753440862,-420.0,0.00032184,2]
[341310240,1730753440871,-55.69581738,0.00032213,2]
[341310275,1730753446509,-27.0398163,0.00032213,2]
[341310276,1730753634967,197.532595,0.00013973,2]
[341310281,1730754136853,162.597754,0.00013973,2]
[341310283,1730754444136,-162.597754,0.00020447,2]
[341310284,1730754444159,-162.597754,0.00026921,2]
[341310285,1730754444181,-234.18675,0.0003,2]
[341310286,1730754444204,-151.0,0.0003,120]
[341310287,1730754444225,-151.0,0.0003,120]
[341310288,1730754444246,-2876.5405581,0.00030228,2]
[341310289,1730754444269,-157.627262,0.00030298,2]
[341310290,1730754444292,-213.633233,0.00030451,2]
[341310291,1730754444312,-174.880207,0.00030669,2]
[341310292,1730754444338,-174.956346,0.00030731,2]
[341310293,1730754444360,-400.0,0.00031099,2]
[341310294,1730754444382,-400.0,0.00031099,2]
[341310295,1730754444404,-500.0,0.000311,30]
[341310296,1730754444426,-24.21609306,0.000311,30]
[341310297,1730754444460,-357.05117961,0.000311,30]
[341310298,1730754607003,1492.9652301,0.00019337,2]
[341310299,1730754607031,255.0478442,0.00019337,2]
[341310300,1730754607054,3251.9869257,0.00019337,2]
[341310301,1730754607301,5000.0,0.00019337,2]
[341310302,1730754607774,5000.0,0.00019337,2]
[341310303,1730754608065,5000.0,0.00019337,2]
[341310304,1730754608378,5000.0,0.00019337,2]
[341310355,1730754632545,-5000.0,0.00029337,25]
[341310357,1730754632554,-400.0,0.00031099,2]
[341310359,1730754632564,-400.0,0.00031099,2]
[341310370,1730754632675,-500.0,0.000311,30]
[341310372,1730754632687,-500.0,0.000311,30]
[341310374,1730754632698,-500.0,0.000311,30]
[341310375,1730754632708,-618.73272733,0.000311,30]
[341310377,1730754632718,-213.43534392,0.00031165,2]
[341310379,1730754632727,-500.0,0.00031165,2]
[341310381,1730754632736,-14.04586506,0.00031165,2]
[341310383,1730754632748,-485.95413494,0.00031165,2]
[341310385,1730754632758,-66.04586506,0.00031165,2]
[341310387,1730754632769,-433.90707799,0.00031165,2]
[341310389,1730754632780,-0.04705695,0.00031165,2]
[341310391,1730754632790,-462.51188448,0.00031165,2]
[341310393,1730754632800,-164.42203035,0.00031165,2]
[341310395,1730754632809,-500.0,0.00031165,2]
[341310397,1730754632818,-184.82484411,0.00031165,2]
[341310398,1730754632828,-447.01128183,0.00031165,2]
[341310400,1730754632837,-500.0,0.00031166,3]
[341310402,1730754632847,-1646.74095138,0.0003134,2]
[341310404,1730754632858,-259.34510494,0.0003134,2]
[341310430,1730754638599,-174.956346,0.00030761,2]
[341310432,1730754638608,-15.70622106,0.0003134,2]
[341310434,1730754638619,-5000.0,0.00031342,2]
[341310435,1730754638628,-211.0,0.00031342,2]
[341310436,1730754638637,-7940.36750461,0.00031342,2]
[341310437,1730754638648,-2010.25245432,0.00031342,2]
[341310438,1730754638763,-5397.83602485,0.00031342,2]
[341310439,1730754638775,-2120.35696102,0.00031342,2]
[341310440,1730754638787,-1953.6539622,0.00031342,2]
[341310441,1730754638798,-5457.533093,0.00031342,2]
[341310442,1730754638808,-463.38969389,0.00031342,7]
[341310443,1730754638817,-500.0,0.0003144,3]
[341310444,1730754638827,-172.42965511,0.00031713,2]
[341310445,1730754638837,-272.80534109,0.00031713,2]
[341310446,1730754638846,-173.87428272,0.00031713,2]
[341310447,1730754638856,-168.8665368,0.00031713,2]
[341310449,1730754638865,-500.0,0.00031714,3]
[341310450,1730754638874,-500.0,0.00031988,3]
[341310451,1730754638883,-174.956346,0.00032159,2]
[341310452,1730754638893,-4234.5067975,0.00032212,2]
[341310453,1730754638904,-765.4932025,0.00032212,2]
[341310454,1730754638913,-84.45660732,0.00032213,2]
[341310455,1730754638923,-150.20930678,0.00032213,2]
[341310469,1730754640587,-48.41830822,0.00032213,2]
[341310470,1730754640597,-1313.7974,0.00032213,2]
[341310471,1730754640606,-500.0,0.00032262,3]
[341310472,1730754640615,-153.0,0.00032301,2]
[341310473,1730754640624,-153.0,0.00032301,2]
[341310474,1730754640633,-153.0,0.00032301,2]
[341310475,1730754640642,-153.0,0.00032301,2]
[341310476,1730754640651,-153.0,0.00032301,2]
[341310477,1730754640661,-153.0,0.00032301,2]
[341310478,1730754640670,-153.0,0.00032301,2]
[341310479,1730754640679,-153.0,0.00032301,2]
[341310480,1730754640688,-153.0,0.00032301,2]
[341310481,1730754640698,-151.0,0.00032301,120]
[341310482,1730754640707,-500.0,0.00032536,3]
[341310483,1730754640716,-1313.7974,0.00032615,2]
[341310484,1730754640726,-286.1719449,0.00032786,2]
[341310485,1730754640736,-500.0,0.0003281,3]
[341310486,1730754640745,-622.36502926,0.00032849,2]
[341310487,1730754640758,-1299.42724808,0.00032849,2]
[341310488,1730754640776,-1000.0,0.00032876,15]
[341310489,1730754640785,-153.0,0.00032904,2]
[341310490,1730754640794,-83.36573507,0.00032904,2]
[341310491,1730754640818,-219.88265653,0.00032904,2]
[341310492,1730754640827,-211.1877169,0.00032904,2]
[341310493,1730754640836,-282.88664342,0.00032904,2]
[341310494,1730754640848,-20.36174818,0.00032904,2]
[341310495,1730754640857,-211.1877169,0.00032904,2]
[341310496,1730754640866,-153.0,0.00032904,2]
[341310497,1730754640876,-211.1877169,0.00032904,2]
[341310498,1730754640885,-153.0,0.00032904,2]
[341310499,1730754640894,-306.0,0.00032904,2]
[341310500,1730754640904,-153.00886093,0.00033,5]
[341310501,1730754640913,-500.0,0.00033008,2]
[341310502,1730754640922,-87.2388145,0.00033018,2]
[341310503,1730754640934,-111.3888005,0.00033018,2]
[341310504,1730754640943,-1313.7974,0.00033018,2]
[341310505,1730754640953,-485.07513796,0.00033039,2]
[341310506,1730754640963,-381.58133198,0.00033084,3]
[341310507,1730754640972,-151.0,0.00033151,120]
[341310508,1730754640981,-153.0,0.0003326,2]
[341310509,1730754640990,-153.0,0.0003326,2]
[341310510,1730754640999,-153.0,0.0003326,2]
[341310511,1730754641008,-153.0,0.0003326,2]
[341310512,1730754641017,-153.0,0.0003326,2]
[341310513,1730754641027,-153.0,0.0003326,2]
[341310514,1730754641036,-500.0,0.00033295,2]
[341310515,1730754641046,-162.597754,0.00033396,2]
[341310516,1730754641055,-2177.85957556,0.0003342,120]
[341310535,1730754644954,-153.0,0.00032301,2]
[341310536,1730754644965,-237.53200891,0.0003342,120]
[341310537,1730754645065,-2584.60841553,0.0003342,120]
[341310538,1730754645076,-1313.7974,0.00033421,2]
[341310539,1730754645085,-500.0,0.00033421,5]
[341310540,1730754645095,-225.90625826,0.00033421,5]
[341310541,1730754645105,-560.0,0.0003348,2]
[341310542,1730754645115,-152.206,0.00033499,2]
[341310544,1730754645124,-1141.0,0.00033499,2]
[341310546,1730754645133,-2393.0,0.00033499,2]
[341310547,1730754645146,-174.956346,0.00033557,2]
[341310549,1730754645155,-5000.0,0.00033667,30]
[341310551,1730754645164,-1275.72,0.000337,2]
[341310552,1730754645174,-500.0,0.00033725,2]
[341310553,1730754645183,-211.1877169,0.00033726,2]
[341310554,1730754645193,-211.1877169,0.00033726,2]
[341310555,1730754645204,-211.1877169,0.00033726,2]
[341310556,1730754645214,-211.1877169,0.00033726,2]
[341310557,1730754645224,-198.627615,0.00033823,2]
[341310558,1730754645234,-1313.7974,0.00033823,2]
[341310559,1730754645243,-485.07513794,0.00034004,2]
[341310560,1730754645252,-5000.0,0.00034208,120]
[341310561,1730754645262,-560.0,0.00034209,2]
[341310562,1730754645272,-1921.79227734,0.00034357,2]
[341310563,1730754645282,-157.045,0.0003442,30]
[341310564,1730754645292,-500.0,0.000346,45]
[341310565,1730754645302,-151.0,0.00034603,120]
[341310566,1730754645312,-234.18675,0.00034665,2]
[341310567,1730754645323,-303.2483916,0.00034904,2]
[341310568,1730754645332,-174.956346,0.00034954,2]
[341310569,1730754645341,-485.07513794,0.0003497,2]
[341310570,1730754645351,-500.0,0.000356,48]
[341310571,1730754645361,-361.22,0.0003579,10]
[341310572,1730754645370,-500.0,0.00035798,2]
[341310573,1730754645380,-5000.0,0.000358,25]
[341310574,1730754645390,-1921.79227734,0.00035866,2]
[341310575,1730754645402,-151.0,0.0003589,14]
[341310576,1730754645411,-151.0,0.0003589,14]
[341310577,1730754645421,-151.0,0.0003589,14]
[341310578,1730754645430,-151.0,0.0003589,14]
[341310579,1730754645440,-151.0,0.0003589,14]
[341310580,1730754645450,-151.0,0.0003589,14]
[341310581,1730754645461,-151.0,0.0003589,14]
[341310582,1730754645472,-301.01,0.0003589,10]
[341310583,1730754645482,-5000.0,0.00035899,120]
[341310584,1730754645492,-6941.71576472,0.000359,2]
[341310585,1730754645501,-151.0,0.000359,2]
[341310586,1730754645511,-151.0,0.000359,14]
[341310587,1730754645520,-151.0,0.000359,14]
[341310588,1730754645529,-151.0,0.000359,14]
[341310589,1730754645540,-221.698852,0.000359,14]
[341310590,1730754645550,-485.07513794,0.00035935,2]
[341310591,1730754645559,-2357.78,0.00035976,120]
[341310592,1730754645569,-157.45980935,0.00035987,2]
[341310593,1730754645578,-500.0,0.00035987,2]
[341310594,1730754645587,-151.0,0.00035987,14]
[341310595,1730754645597,-151.0,0.00035987,14]
[341310596,1730754645607,-151.0,0.00035987,14]
[341310597,1730754645617,-5000.0,0.00035987,120]
[341310598,1730754645627,-15739.32254871,0.00035988,2]
[341310599,1730754645636,-151.0,0.00035988,2]
[341310600,1730754645645,-151.0,0.00035988,14]
[341310601,1730754645654,-151.0,0.00035988,14]
[341310602,1730754645663,-151.0,0.00035988,14]
[341310603,1730754645673,-151.0,0.00035988,14]
[341310604,1730754645682,-151.0,0.00035988,14]
[341310605,1730754645693,-250.85,0.0003599,10]
[341310606,1730754645703,-500.0,0.00035997,2]
[341310607,1730754645712,-151.0,0.00035998,14]
[341310608,1730754645721,-192.365268,0.00035998,14]
[341310609,1730754645731,-151.0,0.00035998,14]
[341310610,1730754645740,-4516.67991362,0.00035998,120]